fUST/lending_fUST_20250507
["ID","MTS","AMOUNT","RATE_DAILY","PERIOD"]
[360091303,1746547230450,-355.36559014,0.00018073,2]
[360091304,1746547230472,-500.0,0.00018173,2]
[360091305,1746547230494,-500.0,0.00018173,2]
[360091306,1746547230519,-500.0,0.00018173,2]
[360091307,1746547230540,-500.0,0.00018173,2]
[360091308,1746547230565,-156.36324517,0.00018173,2]
[360091309,1746547230588,-784.49652071,0.00018173,2]
[360091310,1746547230611,-500.0,0.00018187,2]
[360091311,1746547230644,-500.0,0.00018187,2]
[360091312,1746547230668,-500.0,0.00018187,2]
[360091313,1746547230690,-500.0,0.00018187,2]
[360091314,1746547230713,-500.0,0.00018187,2]
[360091315,1746547230747,-500.0,0.00018187,2]
[360091316,1746547230770,-335.18685502,0.00018187,2]
[360091317,1746547230802,-512.10518143,0.00018187,2]
[360091318,1746547230824,-299.58259243,0.00018187,2]
[360091319,1746547230847,-1114.72,0.0001819,3]
[360091320,1746547230870,-557.36,0.0001819,3]
[360091321,1746547230892,-278.68,0.0001819,3]
[360091322,1746547230913,-836.08,0.0001819,3]
[360091323,1746547230935,-160.0,0.00018193,2]
[360091324,1746547230957,-490.8375624,0.00018199,2]
[360091325,1746547230980,-370000.0,0.000182,2]
[360091326,1746547231002,-250.0,0.000182,2]
[360091327,1746547231025,-500.0,0.00018273,2]
[360091328,1746547231049,-155.0,0.00018739,2]
[360091329,1746547231075,-204.19797102,0.00018739,2]
[360091330,1746547231097,-640.06062152,0.000189,2]
[360091333,1746547241857,665.86446334,0.000189,2]
[360091382,1746547831987,-155.91146257,0.00017999,2]
[360091383,1746547831997,-259.46520611,0.00018072,2]
[360091384,1746547832007,-168.01168682,0.00018072,2]
[360091385,1746547832017,-500.0,0.00018073,2]
[360091386,1746547832026,-179.23221658,0.00018073,2]
[360091387,1746547832037,-500.0,0.00018073,2]
[360091388,1746547832047,-500.0,0.00018073,2]
[360091389,1746547832056,-500.0,0.00018073,2]
[360091390,1746547832066,-500.0,0.00018073,2]
[360091391,1746547832075,-500.0,0.00018073,2]
[360091392,1746547832086,-500.0,0.00018073,2]
[360091393,1746547832095,-500.0,0.00018073,2]
[360091394,1746547832105,-500.0,0.00018073,2]
[360091395,1746547832115,-650.25,0.0001809,3]
[360091397,1746547832124,-325.12,0.0001809,3]
[360091398,1746547832133,-162.56,0.0001809,3]
[360091399,1746547832143,-487.73,0.0001809,3]
[360091400,1746547832153,-484.69610864,0.00018099,2]
[360091401,1746547832162,-189.28727604,0.00018099,2]
[360091403,1746547832172,-6411.62592525,0.000181,2]
[360091490,1746547838534,-363588.37407475,0.000181,2]
[360091492,1746547838545,-58050.184228,0.00018172,3]
[360091494,1746547838554,-160.0,0.00018172,3]
[360091496,1746547838564,-212.03916285,0.00018172,3]
[360091498,1746547838574,-12610.21250885,0.00018172,3]
[360091500,1746547838584,-841.96455721,0.00018172,3]
[360091502,1746547838595,-824.76289492,0.00018656,2]
[360091504,1746547838607,-857.86093688,0.000189,2]
[360091507,1746547838617,-443.90964223,0.000189,2]
[360091509,1746547838627,-4245.38437705,0.000189,2]
[360091511,1746547838636,-1717.0,0.00019,2]
[360091513,1746547838646,-1500.0,0.00019,2]
[360091515,1746547838656,-32442.0,0.000191,2]
[360091517,1746547838666,-168.49427722,0.00019166,2]
[360091519,1746547838676,-500.0,0.00019173,2]
[360091521,1746547838690,-383.88125839,0.00019173,2]
[360091523,1746547838699,-500.0,0.00019173,2]
[360091525,1746547838709,-213.44413004,0.00019173,2]
[360091527,1746547838719,-432.530265,0.00019173,2]
[360091529,1746547838729,-500.0,0.00019173,2]
[360091531,1746547838739,-500.0,0.00019173,2]
[360091533,1746547838748,-500.0,0.00019173,2]
[360091535,1746547838757,-500.0,0.00019173,2]
[360091537,1746547838768,-518.51980356,0.00019173,2]
[360091539,1746547838778,-500.0,0.00019173,2]
[360091541,1746547838787,-500.0,0.00019173,2]
[360091543,1746547838798,-500.0,0.00019173,2]
[360091545,1746547838807,-335.18314429,0.00019173,2]
[360091547,1746547838817,-502.91977463,0.00019173,2]
[360091549,1746547838826,-500.0,0.00019173,2]
[360091550,1746547838836,-501.13915385,0.00019173,2]
[360091551,1746547838846,-500.0,0.00019173,2]
[360091552,1746547838856,-500.0,0.00019173,2]
[360091554,1746547838866,-500.0,0.00019173,2]
[360091556,1746547838876,-500.0,0.00019173,2]
[360091558,1746547838885,-500.0,0.00019173,2]
[360091560,1746547838896,-400.0,0.00019178,2]
[360091562,1746547838905,-400.0,0.00019178,2]
[360091564,1746547838916,-400.84686798,0.00019178,2]
[360091566,1746547838926,-400.0,0.00019178,2]
[360091568,1746547838936,-400.0,0.00019178,2]
[360091570,1746547838946,-400.0,0.00019178,2]
[360091573,1746547838955,-400.0,0.00019178,2]
[360091575,1746547838965,-828.88,0.00019178,2]
[360091577,1746547838974,-400.0,0.00019178,2]
[360091579,1746547838983,-400.0,0.00019178,2]
[360091581,1746547838993,-503.23780717,0.00019178,2]
[360091583,1746547839002,-400.0,0.00019178,2]
[360091585,1746547839011,-400.0,0.00019178,2]
[360091587,1746547839020,-400.0,0.00019178,2]
[360091589,1746547839030,-407.36300052,0.00019178,2]
[360091591,1746547839039,-402.97556098,0.00019178,2]
[360091593,1746547839048,-402.90417274,0.00019178,2]
[360091595,1746547839057,-403.43878694,0.00019178,2]
[360091596,1746547839067,-400.0,0.00019178,2]
[360091598,1746547839077,-400.0,0.00019178,2]
[360091600,1746547839088,-401.04113812,0.00019178,2]
[360091602,1746547839097,-401.59505143,0.00019178,2]
[360091604,1746547839107,-400.0,0.00019178,2]
[360091607,1746547839116,-400.0,0.00019178,2]
[360091609,1746547839126,-402.77803583,0.00019178,2]
[360091611,1746547839135,-307.91332687,0.00019178,2]
[360091612,1746547839145,-403.35901156,0.00019178,2]
[360091614,1746547839161,-400.0,0.00019178,2]
[360091617,1746547839171,-400.0,0.00019178,2]
[360091618,1746547839180,-400.0,0.00019178,2]
[360091620,1746547839190,-213.8149131,0.00019178,2]
[360091622,1746547839200,-400.0,0.00019178,2]
[360091624,1746547839210,-403.49404676,0.00019178,2]
[360091626,1746547839220,-400.0,0.00019178,2]
[360091628,1746547839229,-400.0,0.00019178,2]
[360091630,1746547839239,-309.69643883,0.00019178,2]
[360091633,1746547839249,-400.0,0.00019178,2]
[360091635,1746547839258,-514.0298498,0.00019178,2]
[360091637,1746547839268,-1233.95,0.00019178,2]
[360091639,1746547839278,-204.21910831,0.00019178,2]
[360091641,1746547839288,-400.0,0.00019178,2]
[360091643,1746547839299,-400.0,0.00019178,2]
[360091645,1746547839308,-400.0,0.00019178,2]
[360091647,1746547839317,-400.0,0.00019178,2]
[360091649,1746547839328,-402.47607156,0.00019178,2]
[360091651,1746547839338,-949.3,0.00019178,2]
[360091653,1746547839351,-409.23229525,0.00019178,2]
[360091655,1746547839361,-400.0,0.00019178,2]
[360091657,1746547839371,-400.0,0.00019178,2]
[360091658,1746547839381,-405.17132737,0.00019178,2]
[360091659,1746547839390,-400.0,0.00019178,2]
[360091661,1746547839401,-503.4654279,0.00019178,2]
[360091662,1746547839410,-400.0,0.00019178,2]
[360091663,1746547839419,-400.0,0.00019178,2]
[360091664,1746547839429,-400.0,0.00019178,2]
[360091665,1746547839439,-400.0,0.00019178,2]
[360091667,1746547839449,-402.91911364,0.00019178,2]
[360091668,1746547839459,-400.0,0.00019178,2]
[360091670,1746547839468,-401.28101685,0.00019178,2]
[360091671,1746547839699,-400.0,0.00019178,2]
[360091672,1746547839709,-400.0,0.00019178,2]
[360091673,1746547839719,-400.0,0.00019178,2]
[360091674,1746547839729,-400.0,0.00019178,2]
[360091675,1746547839739,-400.0,0.00019178,2]
[360091676,1746547839749,-317.15975652,0.00019178,2]
[360091677,1746547839760,-400.0,0.00019178,2]
[360091678,1746547839770,-400.0,0.00019178,2]
[360091679,1746547839780,-400.0,0.00019178,2]
[360091680,1746547839790,-400.13538946,0.00019178,2]
[360091681,1746547839799,-500.0,0.00019178,2]
[360091682,1746547839809,-343.05919239,0.00019178,2]
[360091683,1746547839819,-400.0,0.00019178,2]
[360091684,1746547839829,-400.0,0.00019178,2]
[360091685,1746547839839,-400.0,0.00019178,2]
[360091686,1746547839849,-400.0,0.00019178,2]
[360091687,1746547839860,-400.0,0.00019178,2]
[360091688,1746547839870,-400.0,0.00019178,2]
[360091689,1746547839879,-400.0,0.00019178,2]
[360091690,1746547839888,-438.63,0.00019178,2]
[360091691,1746547839898,-443.31,0.00019178,2]
[360091692,1746547839907,-400.0,0.00019178,2]
[360091693,1746547839917,-400.0,0.00019178,2]
[360091694,1746547839926,-400.0,0.00019178,2]
[360091695,1746547839935,-400.0,0.00019178,2]
[360091696,1746547839944,-400.0,0.00019178,2]
[360091697,1746547839954,-203.04065088,0.00019178,2]
[360091698,1746547839963,-400.0,0.00019178,2]
[360091699,1746547839972,-400.0,0.00019178,2]
[360091700,1746547839982,-400.0,0.00019178,2]
[360091701,1746547839991,-533.07440219,0.00019178,2]
[360091702,1746547840000,-1317.92,0.00019178,2]
[360091703,1746547840010,-400.0,0.00019178,2]
[360091704,1746547840019,-400.0,0.00019178,2]
[360091705,1746547840028,-400.0,0.00019178,2]
[360091706,1746547840037,-400.0,0.00019178,2]
[360091707,1746547840047,-400.0,0.00019178,2]
[360091708,1746547840057,-400.0,0.00019178,2]
[360091709,1746547840066,-588.59,0.00019178,2]
[360091710,1746547840076,-400.0,0.00019178,2]
[360091711,1746547840085,-400.0,0.00019178,2]
[360091712,1746547840094,-400.0,0.00019178,2]
[360091713,1746547840103,-1000.0,0.00019178,2]
[360091714,1746547840112,-400.0,0.00019178,2]
[360091715,1746547840121,-400.0,0.00019178,2]
[360091716,1746547840129,-452.01,0.00019178,2]
[360091717,1746547840138,-215.2150357,0.00019178,2]
[360091718,1746547840146,-358.0,0.00019178,2]
[360091719,1746547840155,-400.0,0.00019178,2]
[360091720,1746547840164,-400.0,0.00019178,2]
[360091721,1746547840173,-400.0,0.00019178,2]
[360091722,1746547840180,-400.0,0.00019178,2]
[360091723,1746547840188,-400.0,0.00019178,2]
[360091724,1746547840197,-400.0,0.00019178,2]
[360091725,1746547840207,-400.0,0.00019178,2]
[360091726,1746547840216,-500.0,0.00019178,2]
[360091727,1746547840226,-400.0,0.00019178,2]
[360091728,1746547840236,-400.0,0.00019178,2]
[360091729,1746547840245,-400.0,0.00019178,2]
[360091730,1746547840254,-400.0,0.00019178,2]
[360091731,1746547840264,-400.0,0.00019178,2]
[360091732,1746547840274,-402.09947175,0.00019178,2]
[360091733,1746547840283,-400.0,0.00019178,2]
[360091734,1746547840293,-400.0,0.00019178,2]
[360091735,1746547840302,-400.0,0.00019178,2]
[360091736,1746547840312,-400.0,0.00019178,2]
[360091737,1746547840321,-400.0,0.00019178,2]
[360091738,1746547840332,-496.38575276,0.00019178,2]
[360091739,1746547840342,-400.0,0.00019178,2]
[360091740,1746547840351,-400.0,0.00019178,2]
[360091741,1746547840361,-400.0,0.00019178,2]
[360091742,1746547840371,-423.4323492,0.00019178,2]
[360091743,1746547840380,-400.0,0.00019178,2]
[360091744,1746547840390,-400.0,0.00019178,2]
[360091745,1746547840399,-400.0,0.00019178,2]
[360091746,1746547840409,-400.0,0.00019178,2]
[360091747,1746547840419,-400.0,0.00019178,2]
[360091748,1746547840429,-400.0,0.00019178,2]
[360091749,1746547840438,-646.19,0.00019178,2]
[360091750,1746547840447,-400.0,0.00019178,2]
[360091751,1746547840457,-400.0,0.00019178,2]
[360091752,1746547840466,-481.53152116,0.00019178,2]
[360091753,1746547840476,-400.0,0.00019178,2]
[360091754,1746547840485,-400.0,0.00019178,2]
[360091755,1746547840494,-400.0,0.00019178,2]
[360091756,1746547840504,-400.0,0.00019178,2]
[360091757,1746547840514,-400.0,0.00019178,2]
[360091758,1746547840523,-250.28177358,0.00019178,2]
[360091759,1746547840533,-556.65,0.00019178,2]
[360091760,1746547840542,-400.0,0.00019178,2]
[360091761,1746547840552,-520.09874239,0.00019178,2]
[360091762,1746547840561,-400.0,0.00019178,2]
[360091763,1746547840571,-400.0,0.00019178,2]
[360091764,1746547840580,-400.0,0.00019178,2]
[360091765,1746547840589,-1052.82,0.00019178,2]
[360091766,1746547840599,-400.0,0.00019178,2]
[360091767,1746547840609,-400.0,0.00019178,2]
[360091768,1746547840618,-400.0,0.00019178,2]
[360091769,1746547840629,-564.77,0.00019178,2]
[360091770,1746547840639,-400.0,0.00019178,2]
[360091771,1746547840648,-400.0,0.00019178,2]
[360091772,1746547840658,-400.0,0.00019178,2]
[360091773,1746547840667,-400.0,0.00019178,2]
[360091774,1746547840679,-582.89,0.00019178,2]
[360091775,1746547840692,-400.0,0.00019178,2]
[360091776,1746547840702,-400.0,0.00019178,2]
[360091777,1746547840712,-208.44611728,0.00019178,2]
[360091778,1746547840721,-176.15756633,0.00019178,2]
[360091779,1746547840732,-400.0,0.00019178,2]
[360091780,1746547840742,-400.0,0.00019178,2]
[360091781,1746547840751,-500.0,0.00019178,2]
[360091782,1746547840764,-400.0,0.00019178,2]
[360091783,1746547840783,-400.0,0.00019178,2]
[360091784,1746547840794,-462.83,0.00019178,2]
[360091785,1746547840805,-400.0,0.00019178,2]
[360091786,1746547840815,-518.87988151,0.00019178,2]
[360091787,1746547840825,-418.11095225,0.00019178,2]
[360091788,1746547840836,-657.89,0.00019178,2]
[360091789,1746547840847,-400.0,0.00019178,2]
[360091790,1746547840857,-400.0,0.00019178,2]
[360091791,1746547840869,-2012.99,0.00019178,2]
[360091792,1746547840879,-400.0,0.00019178,2]
[360091793,1746547840889,-400.0,0.00019178,2]
[360091794,1746547840900,-501.60716646,0.00019178,2]
[360091795,1746547840911,-403.05136874,0.00019178,2]
[360091796,1746547840920,-505.07806577,0.00019178,2]
[360091797,1746547840930,-400.0,0.00019178,2]
[360091798,1746547840940,-538.47,0.00019178,2]
[360091799,1746547840950,-401.36702011,0.00019178,2]
[360091800,1746547840960,-1428.99,0.00019178,2]
[360091801,1746547840971,-483.65,0.00019178,2]
[360091802,1746547840980,-400.0,0.00019178,2]
[360091803,1746547840991,-400.0,0.00019178,2]
[360091804,1746547841000,-400.17178998,0.00019178,2]
[360091805,1746547841011,-400.0,0.00019178,2]
[360091806,1746547841021,-438.36,0.00019178,2]
[360091807,1746547841031,-400.0,0.00019178,2]
[360091808,1746547841042,-360.81304676,0.00019178,2]
[360091809,1746547841053,-400.0,0.00019178,2]
[360091810,1746547841063,-534.54,0.00019178,2]
[360091811,1746547841073,-400.0,0.00019178,2]
[360091812,1746547841084,-400.0,0.00019178,2]
[360091813,1746547841095,-1550.82,0.00019178,2]
[360091814,1746547841105,-327.56483332,0.00019178,2]
[360091815,1746547841114,-400.0,0.00019178,2]
[360091816,1746547841125,-725.53,0.00019178,2]
[360091817,1746547841135,-400.0,0.00019178,2]
[360091818,1746547841145,-400.0,0.00019178,2]
[360091819,1746547841155,-176.52210069,0.00019178,2]
[360091820,1746547841165,-400.0,0.00019178,2]
[360091821,1746547841175,-400.0,0.00019178,2]
[360091822,1746547841185,-400.0,0.00019178,2]
[360091823,1746547841195,-400.0,0.00019178,2]
[360091824,1746547841205,-2938.9,0.00019178,2]
[360091825,1746547841215,-400.0,0.00019178,2]
[360091826,1746547841225,-400.0,0.00019178,2]
[360091827,1746547841235,-400.0,0.00019178,2]
[360091828,1746547841245,-502.39141238,0.00019178,2]
[360091829,1746547841255,-400.0,0.00019178,2]
[360091830,1746547841265,-400.0,0.00019178,2]
[360091831,1746547841275,-400.0,0.00019178,2]
[360091832,1746547841285,-400.0,0.00019178,2]
[360091833,1746547841294,-400.0,0.00019178,2]
[360091834,1746547841304,-400.0,0.00019178,2]
[360091835,1746547841313,-267.4974309,0.00019178,2]
[360091836,1746547841323,-400.0,0.00019178,2]
[360091837,1746547841333,-400.0,0.00019178,2]
[360091838,1746547841343,-400.0,0.00019178,2]
[360091839,1746547841353,-400.0,0.00019178,2]
[360091840,1746547841363,-400.0,0.00019178,2]
[360091841,1746547841372,-490.57,0.00019178,2]
[360091842,1746547841382,-400.0,0.00019178,2]
[360091843,1746547841392,-400.0,0.00019178,2]
[360091844,1746547841401,-400.0,0.00019178,2]
[360091845,1746547841411,-460.40549829,0.00019178,2]
[360091846,1746547841421,-400.0,0.00019178,2]
[360091847,1746547841430,-400.0,0.00019178,2]
[360091848,1746547841440,-400.0,0.00019178,2]
[360091849,1746547841450,-402.9905216,0.00019178,2]
[360091850,1746547841460,-400.0,0.00019178,2]
[360091851,1746547841469,-400.0,0.00019178,2]
[360091852,1746547841479,-514.78859153,0.00019178,2]
[360091853,1746547841488,-559.79,0.00019178,2]
[360091854,1746547841498,-1000.0,0.00019178,2]
[360091855,1746547841508,-400.0,0.00019178,2]
[360091856,1746547841518,-400.0,0.00019178,2]
[360091857,1746547841527,-1130.89,0.00019178,2]
[360091858,1746547841537,-400.0,0.00019178,2]
[360091859,1746547841546,-400.0,0.00019178,2]
[360091860,1746547841556,-666.96,0.00019178,2]
[360091861,1746547841566,-400.0,0.00019178,2]
[360091862,1746547841575,-400.0,0.00019178,2]
[360091863,1746547841586,-598.99,0.00019178,2]
[360091864,1746547841595,-400.0,0.00019178,2]
[360091865,1746547841605,-1026.77,0.00019178,2]
[360091866,1746547841615,-400.0,0.00019178,2]
[360091867,1746547841624,-400.0,0.00019178,2]
[360091868,1746547841634,-400.0,0.00019178,2]
[360091869,1746547841643,-400.0,0.00019178,2]
[360091870,1746547841653,-401.53584369,0.00019178,2]
[360091871,1746547841663,-400.0,0.00019178,2]
[360091872,1746547841673,-400.0,0.00019178,2]
[360091873,1746547841684,-400.0,0.00019178,2]
[360091874,1746547841693,-400.0,0.00019178,2]
[360091875,1746547841703,-400.0,0.00019178,2]
[360091876,1746547841713,-400.0,0.00019178,2]
[360091877,1746547841724,-400.0,0.00019178,2]
[360091878,1746547841734,-400.0,0.00019178,2]
[360091879,1746547841744,-400.0,0.00019178,2]
[360091880,1746547841754,-400.0,0.00019178,2]
[360091881,1746547841764,-400.0,0.00019178,2]
[360091882,1746547841774,-506.24899933,0.00019178,2]
[360091883,1746547841785,-332.90977984,0.00019178,2]
[360091884,1746547841795,-400.0,0.00019178,2]
[360091885,1746547841804,-400.0,0.00019178,2]
[360091886,1746547841814,-608.74,0.00019178,2]
[360091887,1746547841824,-400.0,0.00019178,2]
[360091888,1746547841834,-400.0,0.00019178,2]
[360091889,1746547841847,-400.0,0.00019178,2]
[360091890,1746547841857,-1659.89,0.00019178,2]
[360091891,1746547841868,-217.8951033,0.00019178,2]
[360091892,1746547841879,-585.18,0.00019178,2]
[360091893,1746547841890,-404.44071544,0.00019178,2]
[360091894,1746547841902,-400.0,0.00019178,2]
[360091895,1746547841911,-400.0,0.00019178,2]
[360091896,1746547841921,-400.0,0.00019178,2]
[360091897,1746547841932,-400.0,0.00019178,2]
[360091898,1746547841941,-400.0,0.00019178,2]
[360091899,1746547841951,-400.0,0.00019178,2]
[360091900,1746547841960,-400.0,0.00019178,2]
[360091901,1746547841969,-400.0,0.00019178,2]
[360091902,1746547841978,-400.0,0.00019178,2]
[360091903,1746547841988,-400.0,0.00019178,2]
[360091904,1746547841997,-408.95706626,0.00019178,2]
[360091905,1746547842006,-400.0,0.00019178,2]
[360091906,1746547842016,-618.52,0.00019178,2]
[360091907,1746547842025,-400.0,0.00019178,2]
[360091908,1746547842035,-403.64686653,0.00019178,2]
[360091909,1746547842045,-400.0,0.00019178,2]
[360091910,1746547842054,-400.86104084,0.00019178,2]
[360091911,1746547842064,-400.0,0.00019178,2]
[360091912,1746547842074,-400.0,0.00019178,2]
[360091913,1746547842085,-400.0,0.00019178,2]
[360091914,1746547842095,-401.23,0.00019178,2]
[360091915,1746547842104,-400.0,0.00019178,2]
[360091916,1746547842114,-1181.51,0.00019178,2]
[360091917,1746547842124,-1181.51,0.00019178,2]
[360091918,1746547842134,-1181.51,0.00019178,2]
[360091919,1746547842144,-1181.51,0.00019178,2]
[360091920,1746547842154,-1181.51,0.00019178,2]
[360091921,1746547842164,-1181.51,0.00019178,2]
[360091922,1746547842173,-1181.51,0.00019178,2]
[360091923,1746547842183,-505.38791715,0.00019178,2]
[360091924,1746547842193,-1181.51,0.00019178,2]
[360091925,1746547842203,-1181.51,0.00019178,2]
[360091926,1746547842212,-500.0,0.00019178,2]
[360091927,1746547842222,-1181.51,0.00019178,2]
[360091928,1746547842232,-500.0,0.00019178,2]
[360091929,1746547842242,-1181.51,0.00019178,2]
[360091930,1746547842251,-208.60332497,0.00019178,2]
[360091931,1746547842261,-1181.51,0.00019178,2]
[360091932,1746547842271,-1181.51,0.00019178,2]
[360091933,1746547842281,-1181.51,0.00019178,2]
[360091934,1746547842291,-1181.51,0.00019178,2]
[360091935,1746547842300,-1181.51,0.00019178,2]
[360091936,1746547842311,-1181.51,0.00019178,2]
[360091937,1746547842321,-1181.51,0.00019178,2]
[360091938,1746547842332,-1181.51,0.00019178,2]
[360091939,1746547842342,-1181.51,0.00019178,2]
[360091940,1746547842354,-400.0,0.00019178,2]
[360091941,1746547842364,-400.0,0.00019178,2]
[360091942,1746547842374,-1181.51,0.00019178,2]
[360091943,1746547842385,-1181.51,0.00019178,2]
[360091944,1746547842394,-1181.51,0.00019178,2]
[360091945,1746547842405,-1181.642461,0.00019178,2]
[360091946,1746547842415,-400.0,0.00019178,2]
[360091947,1746547842425,-825.73,0.00019178,2]
[360091948,1746547842435,-400.0,0.00019178,2]
[360091949,1746547842445,-405.32755235,0.00019178,2]
[360091950,1746547842454,-400.0,0.00019178,2]
[360091951,1746547842464,-400.0,0.00019178,2]
[360091952,1746547842474,-401.67160681,0.00019178,2]
[360091953,1746547842485,-186.25005525,0.00019178,2]
[360091954,1746547842495,-400.0,0.00019178,2]
[360091955,1746547842505,-400.0,0.00019178,2]
[360091956,1746547842514,-401.58873496,0.00019178,2]
[360091957,1746547842524,-400.0,0.00019178,2]
[360091958,1746547842534,-400.0,0.00019178,2]
[360091961,1746547842545,-400.0,0.00019178,2]
[360091963,1746547842555,-400.0,0.00019178,2]
[360091964,1746547842565,-537.8,0.00019178,2]
[360091965,1746547842575,-837.33,0.00019178,2]
[360091966,1746547842590,-400.0,0.00019178,2]
[360091967,1746547842600,-400.0,0.00019178,2]
[360091969,1746547842610,-409.61226827,0.00019178,2]
[360091974,1746547842620,-400.0,0.00019178,2]
[360091977,1746547842630,-400.0,0.00019178,2]
[360091979,1746547842641,-1680.77,0.00019178,2]
[360091983,1746547842651,-400.0,0.00019178,2]
[360091986,1746547842661,-504.16376864,0.00019178,2]
[360091989,1746547842670,-400.0,0.00019178,2]
[360091992,1746547842682,-400.0,0.00019178,2]
[360091995,1746547842694,-464.71,0.00019178,2]
[360091997,1746547842704,-400.0,0.00019178,2]
[360091999,1746547842713,-400.0,0.00019178,2]
[360092001,1746547842724,-400.0,0.00019178,2]
[360092003,1746547842734,-1095.13,0.00019178,2]
[360092005,1746547842744,-400.0,0.00019178,2]
[360092007,1746547842757,-431.81714596,0.00019178,2]
[360092009,1746547842769,-5053.1,0.00019178,2]
[360092011,1746547842779,-1581.61,0.00019178,2]
[360092013,1746547842790,-400.0,0.00019178,2]
[360092015,1746547842799,-400.0,0.00019178,2]
[360092018,1746547842809,-400.0,0.00019178,2]
[360092020,1746547842819,-400.0,0.00019178,2]
[360092022,1746547842833,-400.0,0.00019178,2]
[360092024,1746547842844,-400.0,0.00019178,2]
[360092026,1746547842855,-400.0,0.00019178,2]
[360092046,1746547843034,-732.9,0.00019178,2]
[360092048,1746547843044,-1308.2,0.00019178,2]
[360092050,1746547843054,-548.97,0.00019178,2]
[360092052,1746547843064,-400.0,0.00019178,2]
[360092054,1746547843074,-400.0,0.00019178,2]
[360092056,1746547843086,-405.8713486,0.00019178,2]
[360092058,1746547843095,-513.7459558,0.00019178,2]
[360092060,1746547843104,-220.53743959,0.00019178,2]
[360092062,1746547843114,-758.88,0.00019178,2]
[360092064,1746547843123,-400.0,0.00019178,2]
[360092067,1746547843133,-5582.07,0.00019178,2]
[360092070,1746547843142,-400.0,0.00019178,2]
[360092073,1746547843151,-403.14127598,0.00019178,2]
[360092075,1746547843160,-400.0,0.00019178,2]
[360092077,1746547843170,-509.57626404,0.00019178,2]
[360092079,1746547843179,-400.0,0.00019178,2]
[360092081,1746547843189,-400.0,0.00019178,2]
[360092083,1746547843199,-400.0,0.00019178,2]
[360092085,1746547843208,-400.0,0.00019178,2]
[360092087,1746547843218,-400.0,0.00019178,2]
[360092089,1746547843227,-400.0,0.00019178,2]
[360092091,1746547843247,-475.82,0.00019178,2]
[360092093,1746547843268,-400.0,0.00019178,2]
[360092095,1746547843290,-400.0,0.00019178,2]
[360092097,1746547843317,-400.0,0.00019178,2]
[360092100,1746547843351,-400.0,0.00019178,2]
[360092102,1746547843392,-400.0,0.00019178,2]
[360092121,1746547843633,-516.26450725,0.00019178,2]
[360092123,1746547843644,-206.0059834,0.00019178,2]
[360092125,1746547843654,-3255.39,0.00019178,2]
[360092127,1746547843664,-400.0,0.00019178,2]
[360092129,1746547843673,-400.0,0.00019178,2]
[360092131,1746547843684,-400.0,0.00019178,2]
[360092133,1746547843695,-400.0,0.00019178,2]
[360092135,1746547843705,-826.09,0.00019178,2]
[360092137,1746547843715,-291.15370518,0.00019178,2]
[360092139,1746547843726,-1094.04,0.00019178,2]
[360092141,1746547843735,-400.58940427,0.00019178,2]